fUST/lending_fUST_20250821
["ID","MTS","AMOUNT","RATE_DAILY","PERIOD"]
[380423702,1755755448346,-608.17,0.00022191,3]
[380423704,1755755448355,-480.0,0.00022191,3]
[380423706,1755755448364,-981.81,0.00022191,3]
[380423708,1755755448373,-480.0,0.00022191,3]
[380423710,1755755448384,-480.0,0.00022191,3]
[380423712,1755755448393,-481.72758987,0.00022191,3]
[380423714,1755755448403,-480.0,0.00022191,3]
[380423716,1755755448412,-480.0,0.00022191,3]
[380423718,1755755448422,-480.0,0.00022191,3]
[380423720,1755755448431,-480.0,0.00022191,3]
[380423722,1755755448440,-544.73,0.00022191,3]
[380423724,1755755448450,-651.55,0.00022191,3]
[380423726,1755755448460,-423.2918939,0.00022191,3]
[380423728,1755755448469,-480.0,0.00022191,3]
[380423730,1755755448478,-480.0,0.00022191,3]
[380423732,1755755448488,-480.0,0.00022191,3]
[380423734,1755755448498,-575.4,0.00022191,3]
[380423735,1755755448507,-480.0,0.00022191,3]
[380423736,1755755448517,-2742.92,0.00022191,3]
[380423737,1755755448527,-480.0,0.00022191,3]
[380423738,1755755448536,-480.0,0.00022191,3]
[380423739,1755755448546,-480.0,0.00022191,3]
[380423740,1755755448555,-480.0,0.00022191,3]
[380423741,1755755448565,-480.0,0.00022191,3]
[380423742,1755755448575,-480.0,0.00022191,3]
[380423743,1755755448584,-965.52,0.00022191,3]
[380423744,1755755448594,-480.0,0.00022191,3]
[380423745,1755755448604,-847.6,0.00022191,3]
[380423746,1755755448613,-4305.82,0.00022191,3]
[380423747,1755755448622,-480.0,0.00022191,3]
[380423748,1755755448631,-480.0,0.00022191,3]
[380423749,1755755448640,-480.0,0.00022191,3]
[380423750,1755755448649,-480.0,0.00022191,3]
[380423751,1755755448659,-480.0,0.00022191,3]
[380423752,1755755448667,-480.0,0.00022191,3]
[380423753,1755755448676,-480.0,0.00022191,3]
[380423754,1755755448686,-480.0,0.00022191,3]
[380423755,1755755448695,-480.0,0.00022191,3]
[380423756,1755755448704,-480.0,0.00022191,3]
[380423757,1755755448713,-480.0,0.00022191,3]
[380423759,1755755448723,-480.0,0.00022191,3]
[380423761,1755755448735,-480.0,0.00022191,3]
[380423763,1755755448745,-480.0,0.00022191,3]
[380423765,1755755448754,-480.0,0.00022191,3]
[380423767,1755755448763,-598.38,0.00022191,3]
[380423769,1755755448774,-480.0,0.00022191,3]
[380423771,1755755448783,-480.0,0.00022191,3]
[380423773,1755755448793,-480.0,0.00022191,3]
[380423775,1755755448802,-707.8,0.00022191,3]
[380423777,1755755448811,-480.0,0.00022191,3]
[380423779,1755755448821,-480.0,0.00022191,3]
[380423781,1755755448831,-151.0,0.00022191,7]
[380423783,1755755448841,-480.0,0.00022191,3]
[380423785,1755755448850,-151.0,0.00022191,7]
[380423787,1755755448860,-480.0,0.00022191,3]
[380423789,1755755448869,-480.0,0.00022191,3]
[380423791,1755755448879,-599.89,0.00022191,3]
[380423793,1755755448888,-480.0,0.00022191,3]
[380423795,1755755448898,-420.451648,0.00022191,3]
[380423797,1755755448907,-3178.45,0.00022191,3]
[380423799,1755755448917,-351.85666343,0.00022191,3]
[380423801,1755755448926,-480.0,0.00022191,3]
[380423803,1755755448935,-480.0,0.00022191,3]
[380423805,1755755448944,-480.0,0.00022191,3]
[380423807,1755755448954,-480.0,0.00022191,3]
[380423809,1755755448964,-1464.31,0.00022191,3]
[380423811,1755755448974,-480.0,0.00022191,3]
[380423813,1755755448984,-453.15940019,0.00022191,3]
[380423815,1755755448993,-480.0,0.00022191,3]
[380423817,1755755449003,-480.0,0.00022191,3]
[380423819,1755755449013,-480.0,0.00022191,3]
[380423821,1755755449029,-480.0,0.00022191,3]
[380423823,1755755449039,-480.0,0.00022191,3]
[380423825,1755755449048,-1077.94,0.00022191,3]
[380423827,1755755449057,-1223.6,0.00022191,3]
[380423829,1755755449067,-480.0,0.00022191,3]
[380423831,1755755449076,-480.0,0.00022191,3]
[380423833,1755755449085,-480.0,0.00022191,3]
[380423835,1755755449095,-480.0,0.00022191,3]
[380423837,1755755449104,-5090.19,0.00022191,3]
[380423839,1755755449114,-480.0,0.00022191,3]
[380423841,1755755449123,-480.0,0.00022191,3]
[380423843,1755755449132,-481.95038806,0.00022191,3]
[380423845,1755755449142,-480.0,0.00022191,3]
[380423847,1755755449151,-480.0,0.00022191,3]
[380423849,1755755449161,-480.0,0.00022191,3]
[380423851,1755755449170,-480.0,0.00022191,3]
[380423853,1755755449181,-480.0,0.00022191,3]
[380423855,1755755449191,-1636.43,0.00022191,3]
[380423857,1755755449200,-1651.35,0.00022191,3]
[380423859,1755755449209,-480.0,0.00022191,3]
[380423861,1755755449220,-480.0,0.00022191,3]
[380423863,1755755449230,-451.98009044,0.00022191,3]
[380423865,1755755449239,-480.0,0.00022191,3]
[380423867,1755755449250,-1600.71,0.00022191,3]
[380423869,1755755449260,-151.0,0.00022191,7]
[380423871,1755755449272,-384.92623882,0.00022191,3]
[380423873,1755755449282,-151.0,0.00022191,7]
[380423875,1755755449291,-151.0,0.00022191,7]
[380423878,1755755449306,-858.34,0.00022191,3]
[380423880,1755755449316,-151.0,0.00022191,7]
[380423882,1755755449326,-480.0,0.00022191,3]
[380423884,1755755449337,-151.0,0.00022191,7]
[380423886,1755755449347,-666.5,0.00022191,3]
[380423888,1755755449357,-480.0,0.00022191,3]
[380423890,1755755449366,-151.0,0.00022191,7]
[380423892,1755755449377,-480.0,0.00022191,3]
[380423894,1755755449386,-480.0,0.00022191,3]
[380423896,1755755449396,-480.0,0.00022191,3]
[380423898,1755755449406,-480.0,0.00022191,3]
[380423900,1755755449415,-5436.13,0.00022191,3]
[380423903,1755755449425,-987.13,0.00022191,3]
[380423905,1755755449434,-480.0,0.00022191,3]
[380423907,1755755449444,-480.0,0.00022191,3]
[380423909,1755755449454,-480.0,0.00022191,3]
[380423911,1755755449463,-480.0,0.00022191,3]
[380423913,1755755449473,-480.0,0.00022191,3]
[380423915,1755755449482,-480.0,0.00022191,3]
[380423917,1755755449492,-480.0,0.00022191,3]
[380423919,1755755449502,-480.0,0.00022191,3]
[380423921,1755755449511,-480.0,0.00022191,3]
[380423923,1755755449521,-480.0,0.00022191,3]
[380423925,1755755449531,-556.17,0.00022191,3]
[380423927,1755755449540,-1298.25,0.00022191,3]
[380423929,1755755449550,-480.0,0.00022191,3]
[380423931,1755755449560,-480.0,0.00022191,3]
[380423933,1755755449570,-480.0,0.00022191,3]
[380423935,1755755449579,-480.0,0.00022191,3]
[380423937,1755755449589,-4081.23,0.00022191,3]
[380423939,1755755449599,-480.0,0.00022191,3]
[380423941,1755755449608,-661.03,0.00022191,3]
[380423943,1755755449618,-4649.69,0.00022191,3]
[380423945,1755755449627,-764.39,0.00022191,3]
[380423947,1755755449637,-480.0,0.00022191,3]
[380423949,1755755449646,-646.25,0.00022191,3]
[380423951,1755755449656,-480.0,0.00022191,3]
[380423953,1755755449665,-1607.72,0.00022191,3]
[380423955,1755755449675,-480.0,0.00022191,3]
[380423957,1755755449685,-587.15,0.00022191,3]
[380423960,1755755449695,-1033.88,0.00022191,3]
[380423962,1755755449705,-480.0,0.00022191,3]
[380423964,1755755449715,-480.0,0.00022191,3]
[380423966,1755755449726,-480.0,0.00022191,3]
[380423968,1755755449739,-692.81,0.00022191,3]
[380423970,1755755449749,-151.0,0.00022191,7]
[380423972,1755755449759,-571.49,0.00022191,3]
[380423974,1755755449768,-1892.16,0.00022191,3]
[380423976,1755755449778,-480.0,0.00022191,3]
[380423978,1755755449788,-704.68,0.00022191,3]
[380423980,1755755449797,-480.0,0.00022191,2]
[380423982,1755755449808,-580.06,0.00022191,3]
[380423984,1755755449819,-2026.45,0.00022191,3]
[380423986,1755755449828,-638.71,0.00022191,3]
[380423988,1755755449839,-1548.41,0.00022191,3]
[380423990,1755755449848,-480.0,0.00022191,3]
[380423992,1755755449858,-876.69,0.00022191,3]
[380423994,1755755449867,-151.0,0.00022191,7]
[380423996,1755755449877,-151.0,0.00022191,7]
[380423998,1755755449887,-151.0,0.00022191,7]
[380424000,1755755449896,-913.08,0.00022191,3]
[380424002,1755755449905,-794.9381994,0.00022191,3]
[380424057,1755755450398,-480.0,0.00021917,3]
[380424059,1755755450408,-2041.4718006,0.00022191,3]
[380424061,1755755450417,-480.0,0.00022191,3]
[380424063,1755755450427,-480.0,0.00022191,3]
[380424065,1755755450436,-480.0,0.00022191,3]
[380424067,1755755450445,-480.18,0.00022191,3]
[380424069,1755755450454,-480.0,0.00022191,3]
[380424071,1755755450463,-480.0,0.00022191,3]
[380424073,1755755450472,-480.0,0.00022191,3]
[380424075,1755755450481,-1260.5,0.00022191,3]
[380424077,1755755450490,-480.0,0.00022191,3]
[380424079,1755755450500,-6867.1,0.00022191,3]
[380424081,1755755450509,-480.0,0.00022191,3]
[380424083,1755755450518,-480.0,0.00022191,3]
[380424085,1755755450527,-480.0,0.00022191,3]
[380424087,1755755450536,-480.0,0.00022191,3]
[380424089,1755755450545,-151.0,0.00022191,7]
[380424091,1755755450554,-151.0,0.00022191,7]
[380424093,1755755450563,-480.0,0.00022191,3]
[380424095,1755755450572,-480.0,0.00022191,3]
[380424097,1755755450581,-151.0,0.00022191,7]
[380424099,1755755450590,-897.34,0.00022191,3]
[380424101,1755755450599,-2112.97,0.00022191,3]
[380424103,1755755450608,-151.0,0.00022191,7]
[380424105,1755755450617,-480.0,0.00022191,3]
[380424107,1755755450626,-1849.27,0.00022191,3]
[380424109,1755755450635,-151.0,0.00022191,7]
[380424111,1755755450644,-480.0,0.00022191,3]
[380424113,1755755450654,-151.0,0.00022191,7]
[380424115,1755755450663,-224.24615364,0.00022191,3]
[380424117,1755755450672,-480.0,0.00022191,3]
[380424119,1755755450681,-967.56,0.00022191,3]
[380424121,1755755450690,-480.0,0.00022191,3]
[380424123,1755755450699,-3113.67,0.00022191,3]
[380424125,1755755450708,-151.0,0.00022191,7]
[380424127,1755755450717,-151.0,0.00022191,7]
[380424129,1755755450726,-480.0,0.00022191,3]
[380424131,1755755450738,-480.0,0.00022191,3]
[380424133,1755755450747,-959.71,0.00022191,3]
[380424135,1755755450757,-480.0,0.00022191,3]
[380424137,1755755450766,-480.0,0.00022191,3]
[380424138,1755755450775,-480.0,0.00022191,3]
[380424139,1755755450785,-480.0,0.00022191,3]
[380424140,1755755450794,-431.70393868,0.00022191,3]
[380424141,1755755450803,-521.76,0.00022191,3]
[380424142,1755755450814,-1373.53,0.00022191,3]
[380424143,1755755450823,-480.0,0.00022191,3]
[380424144,1755755450832,-747.07,0.00022191,3]
[380424145,1755755450841,-2085.04,0.00022191,3]
[380424146,1755755450850,-480.0,0.00022191,3]
[380424147,1755755450859,-1394.07,0.00022191,3]
[380424148,1755755450868,-480.0,0.00022191,3]
[380424149,1755755450878,-480.0,0.00022191,3]
[380424150,1755755450887,-422.92247509,0.00022191,3]
[380424151,1755755450896,-480.0,0.00022191,3]
[380424152,1755755450905,-480.0,0.00022191,3]
[380424153,1755755450914,-2621.27,0.00022191,3]
[380424154,1755755450923,-480.0,0.00022191,3]
[380424155,1755755450933,-480.0,0.00022191,3]
[380424156,1755755450942,-5114.37,0.00022191,3]
[380424157,1755755450951,-480.0,0.00022191,3]
[380424158,1755755450961,-2621.23,0.00022191,3]
[380424159,1755755450970,-480.0,0.00022191,3]
[380424160,1755755450979,-480.0,0.00022191,2]
[380424161,1755755450988,-480.0,0.00022191,3]
[380424162,1755755450998,-480.0,0.00022191,3]
[380424163,1755755451007,-151.0,0.00022191,7]
[380424164,1755755451016,-151.0,0.00022191,7]
[380424165,1755755451025,-509.8,0.00022191,3]
[380424166,1755755451035,-480.0,0.00022191,3]
[380424167,1755755451044,-208.05629496,0.000222,69]
[380424168,1755755451053,-391.82828244,0.00022357,2]
[380424169,1755755451062,-200.0,0.0002237,4]
[380424170,1755755451072,-326.0,0.00022371,3]
[380424171,1755755451082,-326.0,0.00022371,3]
[380424172,1755755451091,-326.0,0.00022371,3]
[380424173,1755755451101,-326.0,0.00022371,3]
[380424174,1755755451110,-326.0,0.00022371,3]
[380424175,1755755451119,-326.0,0.00022371,3]
[380424176,1755755451128,-326.0,0.00022371,3]
[380424177,1755755451137,-326.0,0.00022371,3]
[380424178,1755755451146,-326.0,0.00022371,3]
[380424179,1755755451156,-383.53452337,0.00022371,3]
[380424180,1755755451165,-326.0,0.00022371,3]
[380424181,1755755451174,-326.0,0.00022371,3]
[380424182,1755755451184,-326.0,0.00022371,3]
[380424183,1755755451193,-151.0,0.000224,10]
[380424184,1755755451203,-5141.19162578,0.00022429,2]
[380424185,1755755451212,-513.4921152,0.00022465,3]
[380424186,1755755451221,-262.60853019,0.00022465,3]
[380424187,1755755451230,-480.0,0.00022465,3]
[380424188,1755755451240,-656.47,0.00022465,3]
[380424189,1755755451250,-480.0,0.00022465,3]
[380424190,1755755451260,-480.0,0.00022465,3]
[380424191,1755755451269,-480.0,0.00022465,3]
[380424192,1755755451279,-480.0,0.00022465,3]
[380424193,1755755451287,-590.50913545,0.00022465,3]
[380424194,1755755451297,-480.0,0.00022465,3]
[380424195,1755755451306,-480.0,0.00022465,3]
[380424196,1755755451316,-480.0,0.00022465,3]
[380424197,1755755451326,-620.33532795,0.00022465,3]
[380424198,1755755451335,-480.0,0.00022465,3]
[380424199,1755755451345,-480.0,0.00022465,3]
[380424200,1755755451354,-480.0,0.00022465,3]
[380424201,1755755451363,-480.0,0.00022465,3]
[380424202,1755755451372,-480.0,0.00022465,3]
[380424203,1755755451382,-480.0,0.00022465,3]
[380424204,1755755451391,-480.0,0.00022465,3]
[380424205,1755755451400,-166.02166968,0.00022465,3]
[380424206,1755755451410,-480.0,0.00022465,3]
[380424207,1755755451419,-480.0,0.00022465,3]
[380424208,1755755451430,-480.0,0.00022465,3]
[380424209,1755755451439,-480.0,0.00022465,3]
[380424210,1755755451448,-990.52,0.00022465,3]
[380424211,1755755451458,-530.51,0.00022465,3]
[380424212,1755755451467,-480.0,0.00022465,3]
[380424213,1755755451476,-480.0,0.00022465,3]
[380424214,1755755451485,-480.0,0.00022465,3]
[380424215,1755755451494,-480.0,0.00022465,3]
[380424216,1755755451503,-480.0,0.00022465,3]
[380424217,1755755451512,-480.0,0.00022465,3]
[380424218,1755755451523,-480.0,0.00022465,3]
[380424219,1755755451532,-486.16,0.00022465,3]
[380424220,1755755451542,-480.0,0.00022465,3]
[380424221,1755755451551,-1397.58,0.00022465,3]
[380424222,1755755451560,-1144.66,0.00022465,3]
[380424223,1755755451570,-791.07,0.00022465,3]
[380424224,1755755451579,-445.00866726,0.00022465,3]
[380424225,1755755451588,-480.0,0.00022465,3]
[380424226,1755755451597,-418.20986941,0.00022465,3]
[380424227,1755755451606,-326.0,0.00022465,3]
[380424228,1755755451616,-808.14,0.00022465,3]
[380424229,1755755451625,-480.0,0.00022465,3]
[380424230,1755755451635,-480.0,0.00022465,3]
[380424231,1755755451644,-480.0,0.00022465,2]
[380424232,1755755451653,-480.0,0.00022465,3]
[380424233,1755755451662,-1244.45962388,0.00022465,3]
[380424234,1755755451676,-1054.27298042,0.00022465,3]
[380424235,1755755451687,-105.4573957,0.00022465,3]
[380424236,1755755451696,-480.0,0.00022465,3]
[380424237,1755755451705,-537.91,0.00022465,3]
[380424238,1755755451714,-480.0,0.00022465,3]
[380424239,1755755451723,-545.38,0.00022465,3]
[380424240,1755755451734,-480.0,0.00022465,3]
[380424241,1755755451744,-291.04159468,0.00022465,3]
[380424242,1755755451754,-1447.23,0.00022465,3]
[380424243,1755755451763,-444.47596491,0.00022465,3]
[380424244,1755755451772,-480.0,0.00022465,3]
[380424245,1755755451783,-618.29,0.00022465,3]
[380424246,1755755451792,-480.0,0.00022465,3]
[380424247,1755755451801,-423.73080891,0.00022465,3]
[380424248,1755755451810,-480.0,0.00022465,3]
[380424249,1755755451820,-480.0,0.00022465,3]
[380424250,1755755451829,-480.0,0.00022465,3]
[380424251,1755755451838,-480.0,0.00022465,3]
[380424252,1755755451847,-480.0,0.00022465,3]
[380424253,1755755451856,-480.0,0.00022465,3]
[380424254,1755755451865,-480.0,0.00022465,3]
[380424255,1755755451875,-870.35,0.00022465,3]
[380424256,1755755451884,-479.00350808,0.00022465,3]
[380424257,1755755451894,-809.15,0.00022465,3]
[380424258,1755755451903,-480.0,0.00022465,3]
[380424259,1755755451912,-480.0,0.00022465,3]
[380424260,1755755451921,-480.0,0.00022465,3]
[380424261,1755755451930,-480.0,0.00022465,3]
[380424262,1755755451939,-480.0,0.00022465,3]
[380424263,1755755451948,-480.0,0.00022465,3]
[380424264,1755755451957,-480.0,0.00022465,3]
[380424265,1755755451966,-722.49,0.00022465,3]
[380424266,1755755451975,-480.0,0.00022465,3]
[380424267,1755755451984,-480.0,0.00022465,3]
[380424268,1755755451994,-480.0,0.00022465,3]
[380424269,1755755452003,-480.0,0.00022465,3]
[380424270,1755755452012,-1204.42,0.00022465,3]
[380424271,1755755452021,-480.0,0.00022465,3]
[380424272,1755755452031,-480.0,0.00022465,3]
[380424273,1755755452041,-480.0,0.00022465,3]
[380424274,1755755452052,-480.0,0.00022465,3]
[380424275,1755755452061,-480.0,0.00022465,3]
[380424276,1755755452070,-480.0,0.00022465,3]
[380424277,1755755452080,-480.0,0.00022465,3]
[380424278,1755755452091,-480.0,0.00022465,3]
[380424279,1755755452100,-480.0,0.00022465,3]
[380424280,1755755452110,-1034.01,0.00022465,3]
[380424281,1755755452120,-480.0,0.00022465,3]
[380424282,1755755452129,-480.0,0.00022465,3]
[380424283,1755755452139,-1008.04,0.00022465,3]
[380424284,1755755452148,-480.0,0.00022465,3]
[380424285,1755755452157,-480.0,0.00022465,3]
[380424286,1755755452166,-480.0,0.00022465,3]
[380424287,1755755452176,-480.0,0.00022465,3]
[380424288,1755755452185,-291.90330528,0.00022465,3]
[380424289,1755755452194,-480.0,0.00022465,3]
[380424290,1755755452203,-480.0,0.00022465,3]
[380424291,1755755452213,-521.06,0.00022465,3]
[380424292,1755755452222,-480.0,0.00022465,3]
[380424293,1755755452231,-480.0,0.00022465,3]
[380424294,1755755452241,-877.6,0.00022465,3]
[380424295,1755755452250,-591.04,0.00022465,3]
[380424296,1755755452259,-2058.86,0.00022465,3]
[380424297,1755755452268,-480.0,0.00022465,3]
[380424298,1755755452277,-968.17,0.00022465,3]
[380424299,1755755452286,-451.15986703,0.00022465,3]
[380424300,1755755452295,-480.0,0.00022465,3]
[380424301,1755755452304,-463.87913024,0.00022465,3]
[380424302,1755755452313,-480.0,0.00022465,3]
[380424303,1755755452322,-767.23,0.00022465,3]
[380424304,1755755452331,-480.0,0.00022465,3]
[380424305,1755755452340,-679.28,0.00022465,3]
[380424306,1755755452349,-480.0,0.00022465,3]
[380424307,1755755452359,-240.37524493,0.00022465,3]
[380424308,1755755452368,-480.0,0.00022465,3]
[380424309,1755755452377,-1006.42159186,0.00022465,3]
[380424310,1755755453017,-480.0,0.00021917,3]
[380424311,1755755453026,-364.42594873,0.00021917,3]
[380424312,1755755453036,-115.57405127,0.00021917,3]
[380424313,1755755453045,-588.37794416,0.00022191,3]
[380424314,1755755453054,-480.0,0.00022191,3]
[380424315,1755755453063,-1071.47840814,0.00022465,3]
[380424316,1755755453072,-187.02697058,0.00022465,3]
[380424317,1755755453081,-480.0,0.00022465,3]
[380424318,1755755453090,-480.0,0.00022465,3]
[380424319,1755755453099,-480.0,0.00022465,3]
[380424320,1755755453113,-480.0,0.00022465,3]
[380424321,1755755453126,-815.42,0.00022465,3]
[380424322,1755755453135,-590.15,0.00022465,3]
[380424323,1755755453144,-480.0,0.00022465,3]
[380424324,1755755453153,-540.5,0.00022465,3]
[380424325,1755755453163,-480.0,0.00022465,3]
[380424326,1755755453172,-738.43,0.00022465,3]
[380424327,1755755453180,-480.0,0.00022465,3]
[380424328,1755755453189,-480.0,0.00022465,3]
[380424329,1755755453199,-500.0,0.00022465,3]
[380424330,1755755453208,-480.0,0.00022465,3]
[380424331,1755755453216,-480.0,0.00022465,3]
[380424332,1755755453225,-480.0,0.00022465,3]
[380424333,1755755453234,-480.0,0.00022465,3]
[380424334,1755755453243,-480.0,0.00022465,3]
[380424335,1755755453252,-480.0,0.00022465,3]
[380424336,1755755453261,-480.0,0.00022465,3]
[380424337,1755755453270,-653.6,0.00022465,3]
[380424338,1755755453279,-653.26,0.00022465,3]
[380424339,1755755453288,-480.0,0.00022465,3]
[380424340,1755755453298,-480.0,0.00022465,3]
[380424341,1755755453306,-480.0,0.00022465,3]
[380424342,1755755453315,-532.53,0.00022465,3]
[380424343,1755755453325,-480.0,0.00022465,3]
[380424344,1755755453334,-447.84836679,0.00022465,3]
[380424345,1755755453343,-480.0,0.00022465,3]
[380424346,1755755453353,-827.18,0.00022465,3]
[380424347,1755755453362,-480.0,0.00022465,3]
[380424348,1755755453371,-480.0,0.00022465,3]
[380424349,1755755453380,-326.0,0.00022465,3]
[380424350,1755755453389,-480.0,0.00022465,3]
[380424351,1755755453398,-326.0,0.00022465,3]
[380424352,1755755453408,-480.0,0.00022465,3]
[380424353,1755755453418,-326.0,0.00022465,3]
[380424354,1755755453428,-326.0,0.00022465,3]
[380424355,1755755453437,-480.0,0.00022465,3]
[380424356,1755755453446,-480.0,0.00022465,3]
[380424357,1755755453455,-679.09,0.00022465,3]
[380424358,1755755453464,-272.19693551,0.00022465,3]
[380424359,1755755453474,-370.23515897,0.00022465,3]
[380424360,1755755453483,-1257.55,0.00022465,3]
[380424361,1755755453493,-480.0,0.00022465,3]
[380424362,1755755453502,-480.0,0.00022465,3]
[380424363,1755755453512,-680.02,0.00022465,3]
[380424364,1755755453522,-779.54,0.00022465,3]
[380424365,1755755453531,-480.0,0.00022465,3]
[380424366,1755755453541,-480.0,0.00022465,3]
[380424367,1755755453550,-480.0,0.00022465,3]
[380424368,1755755453560,-480.0,0.00022465,3]
[380424369,1755755453569,-480.0,0.00022465,3]
[380424370,1755755453579,-602.09,0.00022465,3]
[380424371,1755755453588,-480.0,0.00022465,3]
[380424372,1755755453598,-529.32,0.00022465,3]
[380424373,1755755453607,-892.06,0.00022465,3]
[380424374,1755755453617,-480.0,0.00022465,3]
[380424375,1755755453627,-501.16033811,0.00022465,3]
[380424376,1755755453636,-246.1178238,0.00022465,3]
[380424377,1755755453645,-158.72076,0.00022465,7]
[380424378,1755755453655,-480.0,0.00022465,3]
[380424379,1755755453664,-480.0,0.00022465,3]
[380424380,1755755453674,-480.0,0.00022465,3]
[380424381,1755755453684,-480.0,0.00022465,3]
[380424382,1755755453693,-608.17,0.00022465,3]
[380424383,1755755453702,-981.81,0.00022465,3]
[380424384,1755755453711,-480.0,0.00022465,3]
[380424385,1755755453721,-480.0,0.00022465,3]
[380424386,1755755453730,-480.0,0.00022465,3]
[380424387,1755755453742,-480.0,0.00022465,3]
[380424388,1755755453751,-480.0,0.00022465,3]
[380424389,1755755453762,-544.73,0.00022465,3]
[380424390,1755755453771,-651.55,0.00022465,3]
[380424391,1755755453781,-480.0,0.00022465,3]
[380424392,1755755453790,-575.4,0.00022465,3]
[380424393,1755755453799,-175.86815086,0.00022465,3]
[380424394,1755755453808,-2742.92,0.00022465,3]
[380424395,1755755453817,-480.0,0.00022465,3]
[380424396,1755755453826,-480.0,0.00022465,3]
[380424397,1755755453836,-480.0,0.00022465,3]
[380424398,1755755453845,-480.0,0.00022465,3]
[380424399,1755755453855,-480.0,0.00022465,3]
[380424400,1755755453864,-480.0,0.00022465,3]
[380424401,1755755453874,-965.52,0.00022465,3]
[380424402,1755755453883,-4305.82,0.00022465,3]
[380424403,1755755453893,-847.6,0.00022465,3]
[380424404,1755755453903,-480.0,0.00022465,3]
[380424405,1755755453912,-480.0,0.00022465,3]
[380424406,1755755453921,-480.0,0.00022465,3]
[380424407,1755755453931,-480.0,0.00022465,3]
[380424408,1755755453940,-480.0,0.00022465,3]
[380424409,1755755453950,-480.0,0.00022465,3]
[380424410,1755755453959,-480.0,0.00022465,3]
[380424411,1755755453967,-480.0,0.00022465,3]
[380424412,1755755453976,-480.0,0.00022465,3]
[380424413,1755755453986,-480.0,0.00022465,3]
[380424414,1755755453995,-480.0,0.00022465,3]
[380424415,1755755454005,-480.0,0.00022465,3]
[380424416,1755755454179,-316.52910653,0.00022465,3]
[380424417,1755755454194,-598.38,0.00022465,3]
[380424418,1755755454204,-480.0,0.00022465,3]
[380424419,1755755454214,-480.0,0.00022465,3]
[380424420,1755755454224,-707.8,0.00022465,3]
[380424421,1755755454233,-480.0,0.00022465,3]
[380424422,1755755454243,-448.18439522,0.00022465,3]
[380424423,1755755454253,-151.0,0.00022465,7]
[380424424,1755755454266,-480.0,0.00022465,3]
[380424425,1755755454276,-599.89,0.00022465,3]
[380424426,1755755454286,-3178.45,0.00022465,3]
[380424427,1755755454296,-480.0,0.00022465,3]
[380424428,1755755454306,-480.0,0.00022465,3]
[380424429,1755755454316,-1464.31,0.00022465,3]
[380424430,1755755454326,-480.0,0.00022465,3]
[380424431,1755755454336,-480.0,0.00022465,3]
[380424432,1755755454346,-480.0,0.00022465,3]
[380424433,1755755454356,-1077.94,0.00022465,3]
[380424434,1755755454365,-1223.6,0.00022465,3]
[380424435,1755755454375,-480.0,0.00022465,3]